[Event "ESP-chT 2nd Division 2019"]
[Site "Linares"]
[Date "2019.08.20"]
[Round "2.38"]
[White "Rivera, Daniel"]
[Black "Valles Mata, David"]
[Result "1/2-1/2"]
[ECO "C02"]
[WhiteElo "2321"]
[BlackElo "2208"]
[Annotator "ChessBase"]
[PlyCount "171"]
[EventDate "2019.08.19"]
[EventType "team-tourn"]
[EventCountry "ESP"]
[SourceTitle "playchess.com"]
[Source "ChessBase"]
[SourceQuality "1"]
[TimeControl "5400+30"]

1. e4 {[%emt 0:00:00]} e6 {[%emt 0:00:00]} 2. d4 {[%emt 0:00:50]} d5 {[%emt 0:00:00]} 3. e5 {[%emt 0:01:28]} c5 {[%emt 0:00:31]} 4. c3 {[%emt 0:00:06]} Nc6 {[%emt 0:00:41]} 5. Nf3 {[%emt 0:00:06]} Bd7 {[%emt 0:01:43]} 6. Bd3 {[%emt 0:01:10]} cxd4 {[%emt 0:22:36]} 7. cxd4 {[%emt 0:00:50]} Nge7 {[%emt 0:00:51]} 8. O-O {[%emt 0:11:05]} Ng6 {[%emt 0:06:07]} 9. Nc3 {[%emt 0:09:58]} Be7 {[%emt 0:03:34]} 10. Be3 {[%emt 0:21:46]} O-O {[%emt 0:01:57]} 11. Rc1 {[%emt 0:00:35]} f6 {[%emt 0:12:43]} 12. exf6 {[%emt 0:02:50]} Bxf6 {[%emt 0:07:09]} 13. Ne2 {[%emt 0:02:08]} Nh4 {[%emt 0:06:15]} 14. Nxh4 {[%emt 0:02:25]} Bxh4 {[%emt 0:00:04]} 15. Bb1 {[%emt 0:03:25]} Bg5 {[%emt 0:03:30]} 16. Qd2 {[%emt 0:05:42]} Bxe3 {[%emt 0:00:54]} 17. fxe3 {[%emt 0:00:30]} Qe7 {[%emt 0:07:14]} 18. Nf4 {[%emt 0:00:51]} Rf7 {[%emt 0:04:07]} 19. Rf3 {[%emt 0:04:13]} g6 {[%emt 0:03:49]} 20. Rcf1 {[%emt 0:02:44]} Raf8 {[%emt 0:05:31]} 21. Qf2 {[%emt 0:09:15]} Be8 {[%emt 0:02:03]} 22. h4 {[%emt 0:01:04]} Qd6 {[%emt 0:03:25]} 23. Qg3 {[%emt 0:01:41]} Ne7 {[%emt 0:04:13]} 24. Bd3 {[%emt 0:07:19]} Nf5 {[%emt 0:01:43]} 25. Qf2 {[%emt 0:06:10]} Qe7 {[%emt 0:00:12]} 26. h5 {[%emt 0:01:30]} g5 {[%emt 0:00:24]} 27. Nxd5 {[%emt 0:00:50]} exd5 {[%emt 0:01:00]} 28. Bxf5 {[%emt 0:00:12]} Kg7 {[%emt 0:01:06]} 29. Qg3 {[%emt 0:00:26]} h6 {[%emt 0:00:12]} 30. a3 {[%emt 0:00:38]} Rf6 {[%emt 0:00:46]} 31. Bg4 {[%emt 0:02:21]} Rxf3 {[%emt 0:00:28]} 32. Rxf3 {[%emt 0:00:02]} Rxf3 {[%emt 0:00:35]} 33. Qxf3 {[%emt 0:00:01]} Bc6 {[%emt 0:00:13]} 34. Kf2 {[%emt 0:00:14]} Qc7 {[%emt 0:00:48]} 35. Qf5 {[%emt 0:00:15]} Qf7 {[%emt 0:00:30]} 36. Ke1 {[%emt 0:01:25]} Qxf5 {[%emt 0:00:19]} 37. Bxf5 {[%emt 0:00:01]} Kf6 {[%emt 0:00:06]} 38. Bc8 {[%emt 0:00:26]} b6 {[%emt 0:00:42]} 39. Ke2 {[%emt 0:01:04]} Bb5+ {[%emt 0:00:29]} 40. Kd2 {[%emt 0:00:16]} Bf1 {[%emt 0:00:26]} 41. g3 {[%emt 0:00:25]} Bg2 {[%emt 0:00:23]} 42. Bg4 {[%emt 0:00:12]} Be4 {[%emt 0:00:51]} 43. Kc3 {[%emt 0:00:24]} Bg2 {[%emt 0:00:45]} 44. Kb4 {[%emt 0:01:10]} Bf1 {[%emt 0:00:19]} 45. Kc3 {[%emt 0:01:12]} Ke7 {[%emt 0:00:37]} 46. Kd2 {[%emt 0:00:14]} Kd6 {[%emt 0:00:28]} 47. Be2 {[%emt 0:00:28]} Bg2 {[%emt 0:00:07]} 48. Kc3 {[%emt 0:00:40]} Be4 {[%emt 0:00:31]} 49. Kb4 {[%emt 0:00:39]} Kc6 {[%emt 0:00:19]} 50. Bg4 {[%emt 0:00:21]} Bd3 {[%emt 0:00:25]} 51. Bf3 {[%emt 0:00:09]} Bf5 {[%emt 0:00:45]} 52. Kc3 {[%emt 0:00:16]} Kd6 {[%emt 0:00:56]} 53. Be2 {[%emt 0:00:15]} Be4 {[%emt 0:00:21]} 54. Bd3 {[%emt 0:00:12]} Bf3 {[%emt 0:00:09]} 55. Bg6 {[%emt 0:00:01]} Ke6 {[%emt 0:00:42]} 56. Kd2 {[%emt 0:00:44]} Kf6 {[%emt 0:00:38]} 57. Ke1 {[%emt 0:01:00]} Ke6 {[%emt 0:00:18]} 58. Kf2 {[%emt 0:00:16]} Bd1 {[%emt 0:00:13]} 59. Be8 {[%emt 0:01:53]} Ke7 {[%emt 0:00:30]} 60. Bc6 {[%emt 0:00:32]} Kd6 {[%emt 0:00:10]} 61. Be8 {[%emt 0:00:27]} Ke7 {[%emt 0:00:11]} 62. Bg6 {[%emt 0:00:16]} Ke6 {[%emt 0:00:22]} 63. Ke1 {[%emt 0:00:55]} Bf3 {[%emt 0:00:06]} 64. Kf2 {[%emt 0:00:47]} Bd1 {[%emt 0:00:05]} 65. Ke1 {[%emt 0:00:34]} Bf3 {[%emt 0:00:06]} 66. Kd2 {[%emt 0:00:14]} Kd6 {[%emt 0:00:33]} 67. Kc3 {[%emt 0:00:05]} Be2 {[%emt 0:00:59]} 68. Kb4 {[%emt 0:00:13]} Kc7 {[%emt 0:01:50]} 69. Be8 {[%emt 0:00:29]} Bf3 {[%emt 0:00:48]} 70. Ka4 {[%emt 0:01:10]} Bd1+ {[%emt 0:00:24]} 71. Kb4 {[%emt 0:00:48]} Bf3 {[%emt 0:00:02]} 72. Bf7 {[%emt 0:00:28]} Kc6 {[%emt 0:00:45]} 73. Kc3 {[%emt 0:00:34]} Kd6 {[%emt 0:00:12]} 74. Bg6 {[%emt 0:00:18]} Be2 {[%emt 0:00:22]} 75. Kd2 {[%emt 0:00:33]} Bf3 {[%emt 0:00:05]} 76. Kd3 {[%emt 0:00:07]} Ke6 {[%emt 0:00:19]} 77. Be8 {[%emt 0:00:58]} Ke7 {[%emt 0:00:10]} 78. Bc6 {[%emt 0:00:29]} Kd6 {[%emt 0:00:10]} 79. Be8 {[%emt 0:00:14]} Ke7 {[%emt 0:00:04]} 80. Bg6 {[%emt 0:00:05]} Ke6 {[%emt 0:00:04]} 81. Kd2 {[%emt 0:00:45]} Kd6 {[%emt 0:00:05]} 82. Ke1 {[%emt 0:00:05]} Ke6 {[%emt 0:00:07]} 83. Kf2 {[%emt 0:00:28]} Bd1 {[%emt 0:00:05]} 84. Be8 {[%emt 0:00:09]} Ke7 {[%emt 0:00:16]} 85. Bg6 {[%emt 0:01:28]} Ke6 {[%emt 0:00:03]} 86. Ke1 {[%emt 0:00:45]} 1/2-1/2

[Event "ESP-chT 2nd Division 2019"]
[Site "Linares"]
[Date "2019.08.20"]
[Round "2.39"]
[White "Gonzalez Maza, Rafael"]
[Black "Fernandez Lopez, Ruben"]
[Result "1-0"]
[ECO "A48"]
[WhiteElo "2173"]
[BlackElo "2242"]
[Annotator "ChessBase"]
[PlyCount "111"]
[EventDate "2019.08.19"]
[EventType "team-tourn"]
[EventCountry "ESP"]
[SourceTitle "playchess.com"]
[Source "ChessBase"]
[SourceQuality "1"]
[TimeControl "5400+30"]

1. d4 {[%emt 0:00:00]} Nf6 {[%emt 0:00:00]} 2. Nf3 {[%emt 0:00:00]} g6 {[%emt 0:00:00]} 3. e3 {[%emt 0:00:00]} Bg7 {[%emt 0:00:04]} 4. b3 {[%emt 0:00:00]} O-O {[%emt 0:00:29]} 5. Bb2 {[%emt 0:00:00]} d6 {[%emt 0:01:18]} 6. Be2 {[%emt 0:00:00]} Nbd7 {[%emt 0:00:43]} 7. h3 {[%emt 0:03:07]} c5 {[%emt 0:07:11]} 8. c4 {[%emt 0:04:19]} cxd4 {[%emt 0:09:56]} 9. Nxd4 {[%emt 0:00:54]} d5 {[%emt 0:04:06]} 10. cxd5 {[%emt 0:19:09]} Nxd5 {[%emt 0:05:02]} 11. O-O {[%emt 0:02:54]} Nc5 {[%emt 0:15:13]} 12. Nc3 {[%emt 0:14:41]} Nxc3 {[%emt 0:02:36]} 13. Bxc3 {[%emt 0:00:02]} a6 {[%emt 0:04:05]} 14. Qc2 {[%emt 0:04:28]} e5 {[%emt 0:12:54]} 15. Nf3 {[%emt 0:00:57]} Re8 {[%emt 0:00:18]} 16. Rfd1 {[%emt 0:03:23]} Qb6 {[%emt 0:02:51]} 17. b4 {[%emt 0:04:19]} Nd7 {[%emt 0:03:53]} 18. Qb2 {[%emt 0:02:15]} Qe6 {[%emt 0:05:57]} 19. a4 {[%emt 0:09:47]} a5 {[%emt 0:05:00]} 20. Bb5 {[%emt 0:05:43]} axb4 {[%emt 0:01:10]} 21. Qxb4 {[%emt 0:02:12]} Bf8 {[%emt 0:05:47]} 22. Qb2 {[%emt 0:00:42]} f6 {[%emt 0:00:37]} 23. Rd2 {[%emt 0:02:18]} Re7 {[%emt 0:00:16]} 24. Bb4 {[%emt 0:03:43]} Rf7 {[%emt 0:02:56]} 25. Rc1 {[%emt 0:06:39]} Nb6 {[%emt 0:03:12]} 26. a5 {[%emt 0:01:06]} Nd5 {[%emt 0:05:06]} 27. Bxf8 {[%emt 0:01:01]} Kxf8 {[%emt 0:00:06]} 28. Bc4 {[%emt 0:00:17]} Rd7 {[%emt 0:00:53]} 29. e4 {[%emt 0:00:14]} Rc7 {[%emt 0:01:00]} 30. Bxd5 {[%emt 0:00:36]} Qe7 {[%emt 0:00:05]} 31. Rdc2 {[%emt 0:01:31]} Rxc2 {[%emt 0:00:18]} 32. Qxc2 {[%emt 0:00:02]} Qa3 {[%emt 0:01:04]} 33. Qc5+ {[%emt 0:00:07]} Qxc5 {[%emt 0:00:01]} 34. Rxc5 {[%emt 0:00:15]} Ke7 {[%emt 0:00:01]} 35. a6 {[%emt 0:01:35]} Kd6 {[%emt 0:00:18]} 36. Rc1 {[%emt 0:00:36]} Rxa6 {[%emt 0:00:18]} 37. Rxc8 {[%emt 0:00:08]} Ra1+ {[%emt 0:00:03]} 38. Kh2 {[%emt 0:00:30]} b5 {[%emt 0:00:01]} 39. Rc6+ {[%emt 0:00:17]} Ke7 {[%emt 0:00:02]} 40. Rb6 {[%emt 0:00:19]} Rb1 {[%emt 0:00:02]} 41. Re6+ {[%emt 0:00:25]} Kd7 {[%emt 0:00:03]} 42. Rxf6 {[%emt 0:00:57]} b4 {[%emt 0:00:01]} 43. Nxe5+ {[%emt 0:00:23]} Ke7 {[%emt 0:00:01]} 44. Rb6 {[%emt 0:00:23]} h5 {[%emt 0:00:13]} 45. h4 {[%emt 0:00:06]} Kf8 {[%emt 0:00:05]} 46. Rb7 {[%emt 0:00:10]} Ke8 {[%emt 0:00:06]} 47. Nxg6 {[%emt 0:00:34]} Kd8 {[%emt 0:00:04]} 48. Nf4 {[%emt 0:00:18]} Ke8 {[%emt 0:00:04]} 49. Nxh5 {[%emt 0:00:07]} b3 {[%emt 0:00:03]} 50. Rxb3 {[%emt 0:00:16]} Rf1 {[%emt 0:00:02]} 51. Rf3 {[%emt 0:00:17]} Ke7 {[%emt 0:00:01]} 52. Ng3 {[%emt 0:00:14]} Ra1 {[%emt 0:00:05]} 53. h5 {[%emt 0:00:10]} Ra6 {[%emt 0:00:02]} 54. Ne2 {[%emt 0:00:14]} Rh6 {[%emt 0:00:05]} 55. g4 {[%emt 0:00:05]} Kd6 {[%emt 0:00:04]} 56. Kh3 {[%emt 0:00:46] Kxd5} 1-0

[Event "ESP-chT 2nd Division 2019"]
[Site "Linares"]
[Date "2019.08.20"]
[Round "2.40"]
[White "Lorenzo Serrano, Henar"]
[Black "Galera Serra, Maria"]
[Result "1/2-1/2"]
[ECO "C45"]
[WhiteElo "1719"]
[BlackElo "1467"]
[Annotator "NA"]
[PlyCount "87"]
[EventDate "2019.08.19"]
[EventType "team-tourn"]
[EventCountry "ESP"]
[SourceTitle "playchess.com"]
[Source "ChessBase"]
[SourceQuality "1"]
[TimeControl "5400+30"]

1. e4 {[%emt 0:00:00]} e5 {[%emt 0:00:00]} 2. Nf3 {[%emt 0:00:00]} Nc6 {[%emt 0:00:00]} 3. d4 {[%emt 0:00:00]} exd4 {[%emt 0:01:21]} 4. Nxd4 {[%emt 0:00:00]} Bc5 {[%emt 0:00:33]} 5. Be3 {[%emt 0:00:00]} Qf6 {[%emt 0:02:32]} 6. Nb5 {[%emt 0:01:22]} Bxe3 {[%emt 0:01:26]} 7. fxe3 {[%emt 0:00:08]} Qe5 {[%emt 0:11:51]} 8. N1c3 {[%emt 0:10:04]} a6 {[%emt 0:00:31]} 9. Nd4 {[%emt 0:03:13]} Nge7 {[%emt 0:00:57]} 10. Qf3 {[%emt 0:15:01]} O-O {[%emt 0:05:20]} 11. O-O-O {[%emt 0:01:56]} d6 {[%emt 0:06:38]} 12. Nxc6 {[%emt 0:03:18]} bxc6 {[%emt 0:00:20]} 13. Bc4 {[%emt 0:09:54]} Be6 {[%emt 0:13:21]} 14. Bb3 {[%emt 0:02:35]} Bxb3 {[%emt 0:09:07]} 15. axb3 {[%emt 0:00:09]} Qa5 {[%emt 0:00:14]} 16. Kb1 {[%emt 0:03:54]} Rab8 {[%emt 0:06:12]} 17. h4 {[%emt 0:08:39]} h6 {[%emt 0:05:57]} 18. g4 {[%emt 0:04:43]} f6 {[%emt 0:10:10]} 19. Qh3 {[%emt 0:06:57]} Rf7 {[%emt 0:02:48]} 20. g5 {[%emt 0:02:22]} fxg5 {[%emt 0:01:07]} 21. hxg5 {[%emt 0:01:22]} Qxg5 {[%emt 0:03:32]} 22. Rdg1 {[%emt 0:06:43]} Qf6 {[%emt 0:00:06]} 23. Ne2 {[%emt 0:02:35]} Ng6 {[%emt 0:08:30]} 24. Qh5 {[%emt 0:11:03]} Ne5 {[%emt 0:02:25]} 25. Nf4 {[%emt 0:00:39]} Kf8 {[%emt 0:03:31]} 26. Ng6+ {[%emt 0:03:53]} Nxg6 {[%emt 0:00:18]} 27. Rxg6 {[%emt 0:00:23]} Qe5 {[%emt 0:00:03]} 28. Qg4 {[%emt 0:00:19]} Ke7 {[%emt 0:00:47]} 29. Rg1 {[%emt 0:00:31]} Rg8 {[%emt 0:00:22]} 30. Rxh6 {[%emt 0:01:02]} gxh6 {[%emt 0:00:29]} 31. Qxg8 {[%emt 0:00:04]} Qxe4 {[%emt 0:00:13]} 32. Qc8 {[%emt 0:00:28]} Qxe3 {[%emt 0:00:17]} 33. Qxc7+ {[%emt 0:00:19]} Ke6 {[%emt 0:00:18]} 34. Qc8+ {[%emt 0:01:38]} Ke7 {[%emt 0:01:58]} 35. Qc7+ {[%emt 0:00:05]} Ke6 {[%emt 0:00:21]} 36. Rg6+ {[%emt 0:01:17]} Rf6 {[%emt 0:01:11]} 37. Qc8+ {[%emt 0:00:39]} Kd5 {[%emt 0:00:31]} 38. c4+ {[%emt 0:00:25]} Kc5 {[%emt 0:00:20]} 39. Rxf6 {[%emt 0:00:46]} Qe1+ {[%emt 0:00:11]} 40. Kc2 {[%emt 0:00:13]} Qe2+ {[%emt 0:00:08]} 41. Kc1 {[%emt 0:00:25]} Qe1+ {[%emt 0:00:06]} 42. Kc2 {[%emt 0:00:16]} Qe2+ {[%emt 0:00:14]} 43. Kb1 {[%emt 0:00:14]} Qe1+ {[%emt 0:00:25]} 44. Kc2 {[%emt 0:00:33]} 1/2-1/2

[Event "ESP-chT 2nd Division 2019"]
[Site "Linares"]
[Date "2019.08.20"]
[Round "3.2"]
[White "Del Rio De Angelis, Salvador G."]
[Black "Torres Sanchez, Jose"]
[Result "1-0"]
[ECO "B06"]
[WhiteElo "2472"]
[BlackElo "2304"]
[Annotator "ChessBase"]
[PlyCount "85"]
[EventDate "2019.08.19"]
[EventType "team-tourn"]
[EventCountry "ESP"]
[SourceTitle "playchess.com"]
[Source "ChessBase"]
[SourceQuality "1"]
[TimeControl "5400+30"]

1. d4 {[%emt 0:00:00]} g6 {[%emt 0:00:26]} 2. e4 {[%emt 0:00:00]} Bg7 {[%emt 0:00:17]} 3. Nc3 {[%emt 0:00:00]} a6 {[%emt 0:00:16]} 4. f4 {[%emt 0:00:24]} d5 {[%emt 0:02:10]} 5. e5 {[%emt 0:01:43]} Nh6 {[%emt 0:01:14]} 6. Bd3 {[%emt 0:01:22]} b6 {[%emt 0:04:04]} 7. Nf3 {[%emt 0:01:55]} O-O {[%emt 0:01:34]} 8. Ne2 {[%emt 0:01:42]} c5 {[%emt 0:00:41]} 9. c3 {[%emt 0:00:05]} a5 {[%emt 0:08:47]} 10. O-O {[%emt 0:04:51]} Nc6 {[%emt 0:03:40]} 11. h3 {[%emt 0:02:22]} a4 {[%emt 0:14:22]} 12. g4 {[%emt 0:01:29]} f5 {[%emt 0:01:10]} 13. g5 {[%emt 0:05:51]} Nf7 {[%emt 0:00:15]} 14. Bb5 {[%emt 0:00:27]} Qd7 {[%emt 0:05:06]} 15. Be3 {[%emt 0:03:42]} Ra5 {[%emt 0:00:45]} 16. c4 {[%emt 0:03:27]} e6 {[%emt 0:12:14]} 17. dxc5 {[%emt 0:00:41]} dxc4 {[%emt 0:00:16]} 18. Qxd7 {[%emt 0:05:33]} Bxd7 {[%emt 0:00:12]} 19. Bxc6 {[%emt 0:00:12]} Bxc6 {[%emt 0:00:09]} 20. cxb6 {[%emt 0:00:06]} a3 {[%emt 0:01:27]} 21. Nfd4 {[%emt 0:06:21]} axb2 {[%emt 0:01:29]} 22. Rab1 {[%emt 0:02:29]} Be4 {[%emt 0:00:38]} 23. Rxb2 {[%emt 0:00:11]} Ra3 {[%emt 0:00:05]} 24. Nc2 {[%emt 0:07:29]} Rd3 {[%emt 0:05:54]} 25. Rb4 {[%emt 0:05:46]} Ra8 {[%emt 0:04:23]} 26. Rc1 {[%emt 0:15:15]} Bd5 {[%emt 0:00:45]} 27. Kf2 {[%emt 0:02:37]} Nd8 {[%emt 0:01:24]} 28. Ne1 {[%emt 0:08:35]} Bf8 {[%emt 0:09:09]} 29. Rb5 {[%emt 0:00:26]} Rxa2 {[%emt 0:00:51]} 30. Rc2 {[%emt 0:00:06]} Raa3 {[%emt 0:00:47]} 31. Nxd3 {[%emt 0:02:41]} cxd3 {[%emt 0:00:19]} 32. Rc8 {[%emt 0:00:05]} Ra2 {[%emt 0:00:28]} 33. Rxd8 {[%emt 0:00:20]} Rxe2+ {[%emt 0:00:31]} 34. Kf1 {[%emt 0:00:21]} Bg2+ {[%emt 0:08:31]} 35. Kg1 {[%emt 0:00:07]} Bb7 {[%emt 0:00:25]} 36. Rxd3 {[%emt 0:01:49]} Rg2+ {[%emt 0:02:05]} 37. Kf1 {[%emt 0:00:06]} Ra2 {[%emt 0:02:30]} 38. Rd2 {[%emt 0:02:20]} Ra8 {[%emt 0:02:55]} 39. Kf2 {[%emt 0:00:14]} Rb8 {[%emt 0:02:45]} 40. Rc2 {[%emt 0:01:37]} Be7 {[%emt 0:00:27]} 41. Ra5 {[%emt 0:01:56]} Bd8 {[%emt 0:00:43]} 42. Ra7 {[%emt 0:01:49]} Bd5 {[%emt 0:00:26]} 43. b7 {[%emt 0:01:17]} 1-0

[Event "ESP-chT 2nd Division 2019"]
[Site "Linares"]
[Date "2019.08.20"]
[Round "3.3"]
[White "Represa Perez, Mireya"]
[Black "Iruzubieta Villaluenga, Jesus M"]
[Result "0-1"]
[ECO "C72"]
[WhiteElo "2229"]
[BlackElo "2438"]
[Annotator "NA"]
[PlyCount "94"]
[EventDate "2019.08.19"]
[EventType "team-tourn"]
[EventCountry "ESP"]
[SourceTitle "playchess.com"]
[Source "ChessBase"]
[SourceQuality "1"]
[TimeControl "5400+30"]

1. e4 {[%emt 0:00:00]} e5 {[%emt 0:00:00]} 2. Nf3 {[%emt 0:00:00]} Nc6 {[%emt 0:00:00]} 3. Bb5 {[%emt 0:00:00]} a6 {[%emt 0:00:00]} 4. Ba4 {[%emt 0:00:00]} d6 {[%emt 0:00:08]} 5. O-O {[%emt 0:00:53]} Bd7 {[%emt 0:00:50]} 6. c3 {[%emt 0:06:51]} Nge7 {[%emt 0:00:23]} 7. Re1 {[%emt 0:07:09]} Ng6 {[%emt 0:00:23]} 8. d4 {[%emt 0:05:47]} Be7 {[%emt 0:00:22]} 9. d5 {[%emt 0:06:38]} Nb8 {[%emt 0:00:10]} 10. Bxd7+ {[%emt 0:00:23]} Nxd7 {[%emt 0:00:07]} 11. c4 {[%emt 0:00:53]} O-O {[%emt 0:07:25]} 12. Nc3 {[%emt 0:02:47]} Nh4 {[%emt 0:04:07]} 13. Nxh4 {[%emt 0:04:53]} Bxh4 {[%emt 0:00:09]} 14. Qg4 {[%emt 0:00:46]} Bf6 {[%emt 0:07:37]} 15. Re3 {[%emt 0:07:54]} g6 {[%emt 0:05:50]} 16. Rh3 {[%emt 0:00:06]} Bg7 {[%emt 0:01:00]} 17. Rb1 {[%emt 0:04:08]} Qe7 {[%emt 0:18:02]} 18. b4 {[%emt 0:07:32]} Rae8 {[%emt 0:17:33]} 19. Qh4 {[%emt 0:05:44]} Qxh4 {[%emt 0:01:26]} 20. Rxh4 {[%emt 0:00:01]} Rc8 {[%emt 0:02:10]} 21. Rh3 {[%emt 0:01:10]} c6 {[%emt 0:04:13]} 22. Bd2 {[%emt 0:08:01]} cxd5 {[%emt 0:00:53]} 23. cxd5 {[%emt 0:00:02]} Rc4 {[%emt 0:00:37]} 24. Rd3 {[%emt 0:11:32]} Rfc8 {[%emt 0:00:51]} 25. f3 {[%emt 0:01:04]} Bf6 {[%emt 0:00:42]} 26. a4 {[%emt 0:01:48]} Bd8 {[%emt 0:13:03]} 27. Rb3 {[%emt 0:01:49]} Bb6+ {[%emt 0:00:57]} 28. Kf1 {[%emt 0:00:06]} f5 {[%emt 0:00:24]} 29. a5 {[%emt 0:10:52]} Ba7 {[%emt 0:00:46]} 30. Ke2 {[%emt 0:00:51]} Kf7 {[%emt 0:02:34]} 31. exf5 {[%emt 0:03:35]} gxf5 {[%emt 0:00:10]} 32. g4 {[%emt 0:00:06]} e4 {[%emt 0:08:48]} 33. fxe4 {[%emt 0:00:30]} fxg4 {[%emt 0:00:27]} 34. Rg3 {[%emt 0:01:12]} Nf6 {[%emt 0:02:19]} 35. b5 {[%emt 0:01:06]} Bd4 {[%emt 0:00:28]} 36. bxa6 {[%emt 0:00:20]} bxa6 {[%emt 0:00:10]} 37. Kd3 {[%emt 0:00:57]} Bxc3 {[%emt 0:01:12]} 38. Rxc3 {[%emt 0:00:26]} Rxc3+ {[%emt 0:00:07]} 39. Bxc3 {[%emt 0:00:02]} Rxc3+ {[%emt 0:00:08]} 40. Kxc3 {[%emt 0:00:04]} Nxe4+ {[%emt 0:00:07]} 41. Kd4 {[%emt 0:00:08]} Nxg3 {[%emt 0:00:04]} 42. hxg3 {[%emt 0:00:06]} Kf6 {[%emt 0:00:12]} 43. Ke4 {[%emt 0:00:07]} Kg5 {[%emt 0:00:11]} 44. Ke3 {[%emt 0:00:12]} Kf5 {[%emt 0:00:16]} 45. Kd4 {[%emt 0:00:04]} h6 {[%emt 0:00:10]} 46. Kd3 {[%emt 0:00:12]} Ke5 {[%emt 0:00:13]} 47. Kc4 {[%emt 0:00:03]} Ke4 {[%emt 0:00:12] Kd4+ Ke5+} 0-1

[Event "ESP-chT 2nd Division 2019"]
[Site "Linares"]
[Date "2019.08.20"]
[Round "3.4"]
[White "Trigo Urquijo, Sergio"]
[Black "Meneses Gonzalez, Kevin Moises"]
[Result "1-0"]
[ECO "A50"]
[WhiteElo "2385"]
[BlackElo "2251"]
[Annotator "NA"]
[PlyCount "117"]
[EventDate "2019.08.19"]
[EventType "team-tourn"]
[EventCountry "ESP"]
[SourceTitle "playchess.com"]
[Source "ChessBase"]
[SourceQuality "1"]
[TimeControl "5400+30"]

1. d4 {[%emt 0:00:00]} Nf6 {[%emt 0:00:00]} 2. c4 {[%emt 0:00:17]} g6 {[%emt 0:00:00]} 3. f3 {[%emt 0:01:39]} c5 {[%emt 0:00:00]} 4. d5 {[%emt 0:00:16]} Bg7 {[%emt 0:00:00]} 5. e4 {[%emt 0:00:39]} d6 {[%emt 0:00:00]} 6. Ne2 {[%emt 0:00:39]} e6 {[%emt 0:00:06]} 7. Nec3 {[%emt 0:00:28]} exd5 {[%emt 0:00:04]} 8. cxd5 {[%emt 0:00:23]} O-O {[%emt 0:00:04]} 9. Be2 {[%emt 0:02:03]} a6 {[%emt 0:00:09]} 10. a4 {[%emt 0:00:31]} Nbd7 {[%emt 0:00:03]} 11. O-O {[%emt 0:01:46]} Ne8 {[%emt 0:05:16]} 12. Be3 {[%emt 0:12:26]} f5 {[%emt 0:00:45]} 13. Qd2 {[%emt 0:01:02]} Qf6 {[%emt 0:11:36]} 14. exf5 {[%emt 0:04:00]} gxf5 {[%emt 0:00:27]} 15. Na3 {[%emt 0:12:55]} f4 {[%emt 0:02:43]} 16. Bf2 {[%emt 0:00:12]} Ne5 {[%emt 0:00:05]} 17. Nc4 {[%emt 0:03:07]} Qg6 {[%emt 0:01:10]} 18. Kh1 {[%emt 0:00:50]} Bf5 {[%emt 0:06:07]} 19. Qxf4 {[%emt 0:09:37]} Nd3 {[%emt 0:04:20]} 20. Qd2 {[%emt 0:01:18]} Nxf2+ {[%emt 0:00:17]} 21. Rxf2 {[%emt 0:00:07]} Bd4 {[%emt 0:00:18]} 22. Rff1 {[%emt 0:00:23]} Kh8 {[%emt 0:01:45]} 23. Rfe1 {[%emt 0:08:35]} Nc7 {[%emt 0:16:52]} 24. Nb6 {[%emt 0:05:14]} Rae8 {[%emt 0:00:06]} 25. Bf1 {[%emt 0:00:19]} Bc2 {[%emt 0:20:22]} 26. Rxe8 {[%emt 0:03:51]} Nxe8 {[%emt 0:00:05]} 27. Re1 {[%emt 0:03:50]} Nf6 {[%emt 0:03:31]} 28. Ne2 {[%emt 0:05:38]} Be5 {[%emt 0:07:07]} 29. Nc4 {[%emt 0:01:36]} Bxa4 {[%emt 0:00:25]} 30. Nxe5 {[%emt 0:00:17]} dxe5 {[%emt 0:00:03]} 31. Nc3 {[%emt 0:00:23]} Bd7 {[%emt 0:06:20]} 32. Rxe5 {[%emt 0:00:54]} b5 {[%emt 0:00:07]} 33. d6 {[%emt 0:03:06]} b4 {[%emt 0:01:23]} 34. Nd1 {[%emt 0:01:59]} Ne4 {[%emt 0:01:39]} 35. Qe1 {[%emt 0:02:55]} Nxd6 {[%emt 0:00:24]} 36. Rxc5 {[%emt 0:01:02]} Bb5 {[%emt 0:02:26]} 37. Bxb5 {[%emt 0:02:40]} Nxb5 {[%emt 0:00:05]} 38. Qe5+ {[%emt 0:01:30]} Qf6 {[%emt 0:00:49]} 39. Ne3 {[%emt 0:02:13]} Qxe5 {[%emt 0:00:36]} 40. Rxe5 {[%emt 0:00:05]} Rc8 {[%emt 0:00:21]} 41. h4 {[%emt 0:00:13]} Kg7 {[%emt 0:02:56]} 42. Re7+ {[%emt 0:00:41]} Kf6 {[%emt 0:02:05]} 43. Nd5+ {[%emt 0:00:47]} Kg6 {[%emt 0:01:30]} 44. Nxb4 {[%emt 0:00:27]} Rc4 {[%emt 0:00:10]} 45. Re4 {[%emt 0:00:43]} Rxe4 {[%emt 0:00:55]} 46. fxe4 {[%emt 0:00:05]} Nd6 {[%emt 0:00:01]} 47. Nxa6 {[%emt 0:01:38]} Nxe4 {[%emt 0:00:02]} 48. b4 {[%emt 0:00:23]} Kh5 {[%emt 0:00:03]} 49. Nc5 {[%emt 0:00:35]} Ng3+ {[%emt 0:07:07]} 50. Kh2 {[%emt 0:00:48]} Nf1+ {[%emt 0:01:01]} 51. Kh3 {[%emt 0:00:18]} Ne3 {[%emt 0:00:06]} 52. b5 {[%emt 0:00:33]} Nd5 {[%emt 0:00:02]} 53. Nd7 {[%emt 0:00:52]} Nf4+ {[%emt 0:00:28]} 54. Kh2 {[%emt 0:00:26]} Ne6 {[%emt 0:00:08]} 55. b6 {[%emt 0:00:53]} Nd8 {[%emt 0:00:04]} 56. Nc5 {[%emt 0:00:40]} Kxh4 {[%emt 0:00:10]} 57. b7 {[%emt 0:00:10]} Nc6 {[%emt 0:00:01]} 58. Nd7 {[%emt 0:00:26]} Nb8 59. Nc5 1-0